Cogmind - Beta 9.4 *** ADVENTURER MODE // 2020.08.11 @ 19:48:44 Player: Scyralis Result: Self-destructed Performance ------------- Evolutions (3) 1500 Regions Visited (7) 1400 Robots Destroyed (107) 535 Value Destroyed (3126) 3126 Prototype IDs (9) 180 Alien Tech Used (0) 0 Bonus (1200) 1200 TOTAL SCORE: 7941 Bonus ------- High Alert Combat Kills 508 Follower Combat Kills 128 Entered Garrisons 200 Used RIF Installer 500 Friendly Fire -136 Cogmind --------- Core Integrity 673/700 Matter 233/300 Energy 160/160 System Corruption 0% Temperature Cool (0) Movement Treading (152) Location -7/Factory Parts ------- > --- POWER (1) -------- Light Nuclear Core > --- PROPULSION (2) --- Advanced Treads Medium Treads > --- UTILITY (7) ------ Cooling System Advanced Visual Processing Unit Targeting Computer > --- WEAPON (3) ------- Gauss Cannon Gauss Cannon > --- INVENTORY (4) ---- Heavy Missile Launcher Peak State ------------ > --- POWER ------------ Improved Ion Engine > --- PROPULSION ------- Improved Treads Advanced Treads > --- UTILITY ---------- Cooling System Compact Matter Pod Targeting Computer Improved Shield Generator Long-range Tractor Beam > --- WEAPON ----------- Gauss Cannon Gauss Cannon Gauss Cannon > --- INVENTORY -------- Light Treads Advanced Visual Processing Unit Mini Grenade Launcher [Rating: 32] Favorites ----------- Power Ion Engine Engine Ion Engine Power Core Light Nuclear Core Propulsion Light Treads Treads Light Treads Utility Targeting Computer Device Cooling System Storage High-capacity Matter Pod Processor Targeting Computer Protection Light Armor Plating Weapon Gauss Cannon Ballistic Gun Heavy Assault Rifle Ballistic Cannon Gauss Cannon Launcher Mini Grenade Launcher Build | -11 -10 -10 -9 -9 -8 -8 -7 ------- Run | Scr Mat Min Mat Min Mat Gar Fac Slots Evolved 6 | . . . 2 . 2 . 2 Power . | . . . . . . . . Propulsion . | . . . . . . . . Utility 5 | . . . 2 . 1 . 2 Weapon 1 | . . . . . 1 . . Parts Attached 47 | 6 3 2 7 2 26 . 1 Power 4 | 1 . . . 1 2 . . Engine 3 | 1 . . . 1 1 . . Core 1 | . . . . . 1 . . Reactor . | . . . . . . . . Propulsion 10 | 2 . 1 2 . 4 . 1 Treads 10 | 2 . 1 2 . 4 . 1 Leg . | . . . . . . . . Wheel . | . . . . . . . . Hover . | . . . . . . . . Flight . | . . . . . . . . Utility 14 | 1 1 1 3 1 7 . . Device 4 | 1 . . . . 3 . . Storage 2 | . . . 1 . 1 . . Processor 2 | . . . 1 . 1 . . Hackware . | . . . . . . . . Protection 6 | . 1 1 1 1 2 . . Artifact . | . . . . . . . . Weapon 19 | 2 2 . 2 . 13 . . Energy Gun . | . . . . . . . . Energy Cannon . | . . . . . . . . Ballistic Gun 5 | 2 . . 2 . 1 . . Ballistic Cannon 10 | . 2 . . . 8 . . Launcher 4 | . . . . . 4 . . Special Weapon . | . . . . . . . . Impact Weapon . | . . . . . . . . Slashing Weapon . | . . . . . . . . Piercing Weapon . | . . . . . . . . Special Melee Weapon . | . . . . . . . . Unidentified Prototypes . | . . . . . . . . Parts Lost 9 | . . 1 . 1 4 1 2 Power 1 | . . . . . 1 . . Propulsion . | . . . . . . . . Utility 7 | . . 1 . 1 3 1 1 Weapon 1 | . . . . . . . 1 Highest Loss Streak 3 | . . 1 . 1 3 1 2 Average Slot Usage (%) 95 | . 97 99 99 99 92 99 75 Engine 9 | . 14 14 11 11 7 . . Treads 21 | . 28 28 22 22 18 18 15 Device 11 | . 14 . . . 20 18 15 Storage 5 | . . . 11 11 6 . . Processor 8 | . . . 11 11 9 18 15 Protection 11 | . 12 27 22 21 1 8 . Ballistic Gun 6 | . 7 . 19 22 . . . Ballistic Cannon 18 | . 20 28 2 . 25 27 22 Naked Turns . | . . . . . . . . Heaviest Build 41 | 10 15 17 21 21 41 32 29 Greatest Support 50 | 40 40 40 40 40 45 45 50 Greatest Overweight (x) 1 | . . . . . 1 . . Average Overweight (x) . | . . . . . . . . Largest Inventory Capacity 4 | 4 4 4 4 4 4 4 4 Average Capacity 4 | 4 4 4 4 4 4 4 4 Most Carried 4 | 4 3 4 4 4 4 1 2 Average Carried 1 | . 1 2 2 3 1 1 1 Final Capacity 4 | 4 4 4 4 4 4 4 4 Final Carried 3 | . 2 3 3 3 1 1 1 Class Distribution -------------------- 45% | Mutant 43% | Gunner 7% | Scavenger-Mutant Dominant Class ---------------- Mutant | -10/Materials Mutant | -10/Mines Mutant | -9/Materials Scavenger-Mutant | -9/Mines Gunner | -8/Materials Gunner | -8/Garrison Gunner | -7/Factory Resources | -11 -10 -10 -9 -9 -8 -8 -7 ----------- Run | Scr Mat Min Mat Min Mat Gar Fac Matter Collected 2973 | 278 387 226 186 152 1438 265 41 Remotely 1457 | 223 337 56 . . 535 265 41 Salvage Created 2915 | 90 300 129 336 281 1416 318 45 Parts 196 | 10 31 11 24 18 89 12 1 Haulers Intercepted 7 | . 2 . 1 . 4 . . Recyclers Shooed 1 | . . . . . 1 . . Parts Field Recycled . | . . . . . . . . Retrieved Matter . | . . . . . . . . Parts Self-Destructed . | . . . . . . . . Prevented . | . . . . . . . . Kills | -11 -10 -10 -9 -9 -8 -8 -7 ------- Run | Scr Mat Min Mat Min Mat Gar Fac Combat Hostiles Destroyed 72 | . 4 7 6 7 38 9 1 Guns 14 | . 1 . 6 7 . . . Cannons 44 | . 3 7 . . 24 9 1 AOE 14 | . . . . . 14 . . Classes Destroyed 13 | 2 5 2 1 1 2 . . Worker 7 | . 1 . . . 6 . . Builder 6 | . 2 . . 1 3 . . Tunneler 3 | 2 1 . . . . . . Hauler 7 | . 2 . 1 . 4 . . Recycler 5 | 1 . . . . 4 . . Watcher 6 | . 1 . . . 5 . . Swarmer 18 | . . 2 2 2 12 . . Grunt 37 | . 4 3 1 4 17 8 . Brawler 2 | . . . . . 1 1 . Duelist 1 | . . . . 1 . . . Sentry 12 | . . . 4 . 7 . 1 Hunter 1 | . . . . . 1 . . Assembled 2 | . . 2 . . . . . Best Kill Streak 13 | 2 3 2 2 3 13 3 1 Combat Bots Only 11 | . 2 2 2 3 11 3 1 Max Kills in Single Turn 4 | 1 1 1 1 2 4 2 1 Gunslinging 1 | . . . . 1 . . . Exploded 3 | . . . . . 3 . . Melee . | . . . . . . . . Uniques/NPCs Destroyed . | . . . . . . . . Combat | -11 -10 -10 -9 -9 -8 -8 -7 -------- Run | Scr Mat Min Mat Min Mat Gar Fac Damage Taken 2084 | . 218 199 205 222 797 249 194 Core 228 | . 20 26 . 35 92 28 27 Absorbed by Shields 233 | . . . . . 233 . . Core Remaining (%) 87 | 100 . 81 . 91 . 78 . Volleys Fired 178 | 3 33 15 21 21 63 15 7 Largest 3 | 2 2 2 2 2 3 3 3 Hottest 144 | 40 70 70 46 46 144 144 144 Shots Fired 438 | 6 66 30 42 42 189 45 18 Gun 109 | 6 16 . 42 42 3 . . Cannon 318 | . 50 30 . . 175 45 18 Launcher 11 | . . . . . 11 . . Special . | . . . . . . . . Kinetic 427 | 6 66 30 42 42 178 45 18 Thermal . | . . . . . . . . Explosive 11 | . . . . . 11 . . Electromagnetic . | . . . . . . . . Robot Hit Streak 33 | 3 13 12 18 33 23 17 14 Robot Miss Streak 3 | 1 3 1 2 1 3 1 1 Penetration Max 1 | . . . . . 1 . . Secondary Targets 2 | . . . . 2 . . . Max Gunslinging Chain 1 | . . . . 1 . . . Shots Hit Robots 288 | 5 43 23 34 37 103 27 16 Core Hits 150 | 4 15 10 11 14 81 13 2 Critical Hits 25 | . . . 1 . 16 3 5 Critical Kills 7 | . . . 1 . 4 1 1 Critical Parts Destroyed 17 | . . . . . 11 2 4 Melee Attacks . | . . . . . . . . Impact . | . . . . . . . . Slashing . | . . . . . . . . Piercing . | . . . . . . . . Sneak Attacks . | . . . . . . . . Combat Hostiles . | . . . . . . . . Follow-up Attacks . | . . . . . . . . Damage Inflicted 7905 | 56 624 346 537 600 4483 796 463 Guns 1351 | 56 127 . 537 600 31 . . Cannons 4670 | . 497 346 . . 2728 796 303 Explosions 1871 | . . . . . 1711 . 160 Melee . | . . . . . . . . Ramming 13 | . . . . . 13 . . Kinetic 6021 | 56 624 346 537 600 2759 796 303 Thermal 160 | . . . . . . . 160 Explosive 1711 | . . . . . 1711 . . Electromagnetic . | . . . . . . . . Impact . | . . . . . . . . Slashing . | . . . . . . . . Piercing . | . . . . . . . . Highest Corruption . | . . . . . . . . Average Corruption . | . . . . . . . . Corruption Purged . | . . . . . . . . Overload Shots . | . . . . . . . . Overflow Damage 171 | . 6 4 . . 80 24 57 Projectiles 88 | . 6 4 . . 53 24 1 Explosions 83 | . . . . . 27 . 56 Melee . | . . . . . . . . Knockbacks 30 | . 3 3 . . 18 4 2 Impact . | . . . . . . . . Kinetic 28 | . 3 3 . . 17 4 1 Secondary 2 | . . . . . 1 . 1 Self-Inflicted Damage 73 | . . . . . 73 . . Shots 3 | . . . . . 3 . . Rammed 1 | . . . . . 1 . . Targets Rammed 1 | . . . . . 1 . . Kicked . | . . . . . . . . Crushed . | . . . . . . . . Highest Temperature 249 | . 249 123 6 10 81 158 5 Average Temperature 34 | . 60 38 4 3 11 50 3 Received Heat Transfer 948 | . 165 51 36 135 366 171 24 Siege Activations . | . . . . . . . . Robots Corrupted . | . . . . . . . . Combat Hostiles . | . . . . . . . . Parts Fried . | . . . . . . . . Impact Corruptions 1 | . . . . . 1 . . Robots Melted . | . . . . . . . . Combat Hostiles . | . . . . . . . . Parts Melted . | . . . . . . . . Heat Transferred 150 | . . . . . . . 150 Parts Sabotaged . | . . . . . . . . Parts Stolen . | . . . . . . . . Parts Stripped . | . . . . . . . . Power Chain Reactions . | . . . . . . . . Missiles Intercepted . | . . . . . . . . Alert | -11 -10 -10 -9 -9 -8 -8 -7 ------- Run | Scr Mat Min Mat Min Mat Gar Fac Peak Influence 1163 | 15 173 145 276 209 1163 718 596 Average Influence 364 | 4 91 67 139 166 684 615 355 Maximum Alert Level 4 | . . . 1 1 4 3 2 Low Security (%) 47 | 100 100 100 73 57 7 . . Level 1 13 | . . . 26 42 6 . 89 Level 2 25 | . . . . . 51 93 10 Level 3 9 | . . . . . 25 6 . Level 4 3 | . . . . . 8 . . Level 5 . | . . . . . . . . High Security . | . . . . . . . . Max Security . | . . . . . . . . Squads Dispatched 14 | . 1 . 2 . 8 . 3 Investigation 4 | . 1 . . . 3 . . Extermination . | . . . . . . . . Reinforcement 5 | . . . 2 . 2 . 1 Assault 1 | . . . . . . . 1 Garrison 4 | . . . . . 3 . 1 Intercept . | . . . . . . . . Construction Impeded 1 | . . . . . 1 . . Haulers Reinforced . | . . . . . . . . Stealth | -11 -10 -10 -9 -9 -8 -8 -7 --------- Run | Scr Mat Min Mat Min Mat Gar Fac Distress Signals 3 | . . 1 . . 2 . . Communications Jammed . | . . . . . . . . Distress Signals . | . . . . . . . . Times Spotted 97 | . 8 11 10 11 46 7 4 Peak Tracking Total 11 | . 2 3 6 3 11 3 2 Tactical Retreats 3 | . . 1 . . 2 . . Traps | -11 -10 -10 -9 -9 -8 -8 -7 ------- Run | Scr Mat Min Mat Min Mat Gar Fac Traps Triggered 1 | . . . . . 1 . . Indirectly . | . . . . . . . . Trap Hack Attempts . | . . . . . . . . Triggered . | . . . . . . . . Disarmed . | . . . . . . . . Reprogrammed . | . . . . . . . . Reused . | . . . . . . . . Traps Extracted . | . . . . . . . . Installed . | . . . . . . . . Triggered . | . . . . . . . . Machines | -11 -10 -10 -9 -9 -8 -8 -7 ---------- Run | Scr Mat Min Mat Min Mat Gar Fac Machines Disabled 28 | . 2 . 4 . 12 . 10 Max in Single Turn 10 | . 1 . 1 . 3 . 10 Garrison Access 1 | . . . . . . . 1 Machines Sabotaged . | . . . . . . . . Garrisons Compromised . | . . . . . . . . Overloaded Fab Kills . | . . . . . . . . Fab Network Shutdowns . | . . . . . . . . Hacking | -11 -10 -10 -9 -9 -8 -8 -7 --------- Run | Scr Mat Min Mat Min Mat Gar Fac Machines Accessed 16 | . 5 . 6 . 5 . . Terminals 13 | . 4 . 5 . 4 . . Fabricators . | . . . . . . . . Repair Stations . | . . . . . . . . Recycling Units 2 | . 1 . 1 . . . . Scanalyzers . | . . . . . . . . Garrison Access 1 | . . . . . 1 . . Total Hacks 58 | . 26 . 12 . 20 . . Successful 34 | . 16 . 9 . 9 . . Failed 22 | . 9 . 3 . 10 . . Catastrophic 2 | . . . . . 2 . . Database Lockouts 2 | . 1 . . . 1 . . Manual 44 | . 20 . 9 . 15 . . Terminals 53 | . 25 . 11 . 17 . . Fabricators . | . . . . . . . . Repair Stations . | . . . . . . . . Recycling Units 2 | . 1 . 1 . . . . Scanalyzers . | . . . . . . . . Garrison Access 3 | . . . . . 3 . . Terminal Hacks 29 | . 14 . 8 . 7 . . Robot Analysis 11 | . 3 . 2 . 6 . . Prototype ID Bank 9 | . 6 . 3 . . . . Level Access Points 1 | . . . 1 . . . . Branch Access Points 1 | . . . 1 . . . . Terminal Index 1 | . . . 1 . . . . Alert Level 1 | . 1 . . . . . . Locate Traps 1 | . 1 . . . . . . Surveillance Status 1 | . . . . . 1 . . Recall Investigation 1 | . 1 . . . . . . Hauler Manifests 1 | . 1 . . . . . . Registered Components 1 | . 1 . . . . . . Fabricator Hacks . | . . . . . . . . Repair Station Hacks . | . . . . . . . . Recycling Unit Hacks 2 | . 1 . 1 . . . . Retrieve Components 2 | . 1 . 1 . . . . Scanalyzer . | . . . . . . . . Garrison Access Hacks 1 | . . . . . 1 . . Unlock Access 1 | . . . . . 1 . . Unauthorized Hacks 5 | . 2 . . . 3 . . Terminals 1 | . 1 . . . . . . Botnet 1 | . 1 . . . . . . Fabricators . | . . . . . . . . Repair Stations . | . . . . . . . . Recycling Units . | . . . . . . . . Scanalyzers . | . . . . . . . . Garrison Access 1 | . . . . . 1 . . Reprogram 1 | . . . . . 1 . . Data Cores Recovered . | . . . . . . . . Used . | . . . . . . . . Hacking Detections 14 | . 4 . 5 . 5 . . Full Trace Events 1 | . . . . . 1 . . Feedback Events . | . . . . . . . . Feedback Blocked . | . . . . . . . . Robot Schematics Acquired . | . . . . . . . . Robots Built . | . . . . . . . . Matter . | . . . . . . . . Time . | . . . . . . . . Total Robot Build Rating . | . . . . . . . . Part Schematics Acquired . | . . . . . . . . Parts Built . | . . . . . . . . Matter . | . . . . . . . . Time . | . . . . . . . . Total Part Build Rating . | . . . . . . . . Parts Repaired . | . . . . . . . . Time . | . . . . . . . . Parts Recycled . | . . . . . . . . Recycled Matter . | . . . . . . . . Retrieved Matter . | . . . . . . . . Retrieved Components 2 | . . . 2 . . . . Parts Scanalyzed . | . . . . . . . . Part Schematics Acquired . | . . . . . . . . Parts Damaged . | . . . . . . . . Bothacking | -11 -10 -10 -9 -9 -8 -8 -7 ------------ Run | Scr Mat Min Mat Min Mat Gar Fac Used RIF Installer 1 | . . . . . . 1 . Robots Hacked . | . . . . . . . . Non-combat . | . . . . . . . . Combat . | . . . . . . . . Robot Hacks Applied . | . . . . . . . . Relay Couplers Released 2 | . . . . . . . 2 Machine Destruction 2 | . . . . . . . 2 Robots Rewired . | . . . . . . . . Allies Hacked . | . . . . . . . . Hacks Repelled . | . . . . . . . . Allies | -11 -10 -10 -9 -9 -8 -8 -7 -------- Run | Scr Mat Min Mat Min Mat Gar Fac Total Allies 4 | . . 3 . . 1 . . Largest Group 3 | . . 3 3 . 1 1 . Highest-Rated Group 40 | . . 40 40 . 15 15 . Highest-Rated Ally 16 | . . 16 16 . 15 15 . Total Orders . | . . . . . . . . Ally Attacks 27 | . . 8 10 . 8 1 . Total Damage 325 | . . 84 62 . 179 . . Kills 9 | . . 2 3 . 4 . . Allies Corrupted . | . . . . . . . . Allies Melted . | . . . . . . . . Intel | -11 -10 -10 -9 -9 -8 -8 -7 ------- Run | Scr Mat Min Mat Min Mat Gar Fac Robot Analysis Total 11 | . 3 . 2 . 6 . . Derelict Logs Recovered 2 | . . 1 . 1 . . . Drone Launches . | . . . . . . . . Drone Recoveries . | . . . . . . . . Exploration | -11 -10 -10 -9 -9 -8 -8 -7 ------------- Run | Scr Mat Min Mat Min Mat Gar Fac Turns Passed 3506 | 71 479 410 554 369 1293 248 82 Spaces Moved 1780 | 43 232 225 295 189 627 133 36 Core 17 | 17 . . . . . . . Treads 1763 | 26 232 225 295 189 627 133 36 Legs . | . . . . . . . . Wheels . | . . . . . . . . Hover . | . . . . . . . . Flight . | . . . . . . . . Fastest Speed 50 | 50 160 160 160 160 152 152 152 Average Speed 156 | 116 160 160 160 160 154 152 152 Slowest Speed 180 | 160 160 160 160 160 180 152 152 Overloaded Moves . | . . . . . . . . Propulsion Burnouts . | . . . . . . . . Robots Hopped . | . . . . . . . . Cave-ins Triggered . | . . . . . . . . Exploration Rate (%) 39 | 3 48 75 28 62 60 40 3 Regions Visited 7 Branch Regions 2 Pre-discovered Areas . | . . . . . . . . Known Exits Taken 3 | . . . 1 1 1 . . Unknown Exits Taken 3 | 1 1 1 . . . . . Scrap Searched 2 | . . 1 . 1 . . . Spaces Dug . | . . . . . . . . Terrain Destroyed 181 | . . . . . 161 . 20 Melee . | . . . . . . . . Projectile 69 | . . . . . 68 . 1 AOE 112 | . . . . . 93 . 19 Actions | -11 -10 -10 -9 -9 -8 -8 -7 --------- Run | Scr Mat Min Mat Min Mat Gar Fac Total 2133 | 59 274 245 337 214 810 146 48 Wait 67 | . . . 1 . 66 . . Move 1772 | 42 231 224 294 188 626 131 36 Hop . | . . . . . . . . Pick Up 43 | 7 5 3 8 2 16 . 2 Fast Attach . | . . . . . . . . Attach 27 | 6 2 1 4 1 13 . . Detach . | . . . . . . . . Swap 20 | . 1 1 3 1 13 . 1 Drop 25 | 1 2 1 6 1 12 . 2 Fire 178 | 3 33 15 21 21 63 15 7 Melee . | . . . . . . . . Ram . | . . . . . . . . Kick . | . . . . . . . . Crush 1 | . . . . . 1 . . Escape Stasis . | . . . . . . . . Rewire . | . . . . . . . . Trap . | . . . . . . . . Miscellaneous . | . . . . . . . . Route ------- -11/Scrapyard -10/Materials (discovered 2 exits: *Mat / [*Min]) -10/Mines -9/Materials (discovered 5 exits: Mat x3 / *Min x2) -9/Mines -8/Materials (discovered 5 exits: [*Fac x3] / [*Sto] / Gar) -8/Garrison -7/Factory History --------- Turn | Location | Event 5 | -11/Scrapyard | Discovered new exit (range 15) 72 | -11/Scrapyard | Entered Materials 208 | -10/Materials | Discovered new exit (range 16) 303 | -10/Materials | Build established: Mutant 323 | -10/Materials | Discovered new exit (range 9) 422 | -10/Materials | Central database locked down 551 | -10/Materials | Entered Mines 552 | -10/Mines | Assembled infested the area 557 | -10/Mines | Assisted by a Guerilla fighting off Assembled 575 | -10/Mines | Learned Materials garrison access intel 719 | -10/Mines | Assisted by bots powering up and referring to "LRC-V3" 827 | -10/Mines | Found a hidden stash of uninstalled traps 942 | -10/Mines | Discovered new exit (range 6) 961 | -10/Mines | Entered Materials 961 | -9/Materials | Accompanied by 3 allies 961 | -9/Materials | Evolved 2 slots: Utility x2 1308 | -9/Materials | Discovered new exit (range 16) 1413 | -9/Materials | Identified exit to Mines 1413 | -9/Materials | Identified exit to Materials 1515 | -9/Materials | Entered Mines 1650 | -9/Mines | Learned Materials security intel 1662 | -9/Mines | A weapon hastily lodged in a ceiling crevice suddenly fell to the ground 1849 | -9/Mines | Discovered exit to Materials (range 13) 1884 | -9/Mines | Entered Materials 1884 | -8/Materials | Evolved 2 slots: Utility x1, Weapon x1 1886 | -8/Materials | Loaded intel: 1 garrison access location 2030 | -8/Materials | Destroyed 7 combat bots 2208 | -8/Materials | Discovered new exit (range 5) 2271 | -8/Materials | Build established: Gunner 2397 | -8/Materials | Discovered new exit (range 9) 2461 | -8/Materials | Discovered new exit (range 15) 2799 | -8/Materials | Discovered new exit (range 4) 2845 | -8/Materials | Central database locked down 2866 | -8/Materials | Garrison activated, responded to threat 2890 | -8/Materials | Destroyed 11 combat bots 2895 | -8/Materials | Lost 3 parts (1p2u) 3175 | -8/Materials | Identified exit to Garrison 3177 | -8/Materials | Entered Garrison 3177 | -8/Garrison | Accompanied by 1 ally 3185 | -8/Garrison | Installed Relay Interface Framework 3194 | -8/Garrison | Triggered checkpoint 3326 | -8/Garrison | Triggered checkpoint 3387 | -8/Garrison | Discovered new exit (range 19) 3425 | -8/Garrison | Entered Factory 3425 | -7/Factory | Evolved 2 slots: Utility x2 3507 | -7/Factory | Self-destructed Last Messages --------------- 03498_ Garrison Access disabled. 03498_ Relay Coupler [Hunter] tumbles out of Garrison Access. 03498_ Relay Coupler [Duelist] tumbles out of Garrison Access. 03498_ Fusion Modulator explodes. 03498_ Destroyed Lgt. Ion Engine. 03498_ Terminal disabled. 03498_ Destroyed Hover Unit. 03498_ Destroyed Datajack. 03498_ Destroyed Hover Unit. 03498_ Destroyed Hacking Suite. 03499_ Acquired 40 matter. 03501_ H-55 Commando suffers critical hit. 03501_ Destroyed Carbon-fiber Leg. 03503_ R-06 Scavenger collects Imp. Deuterium Engine. 03504_ R-06 Scavenger suffers critical hit. 03504_ Destroyed Lgt. Ion Engine. 03504_ Destroyed Tractor Beam. 03504_ R-06 Scavenger knocked back. 03506_ Penetrated by Slug. 03506_ Lrn. Tractor Beam destroyed. Map ----- +----------------------------------------------------+ | ?????????????????????????????????????????????????? | | ?????????????????????????????????????????????????? | | ?????????????????????????????????????????????????? | | ?????????????????????????????????????????????????? | | ?????????????????????????????????????????????????? | | ?????????????????????????????????????????????????? | | ?????????????????????????????????????????????????? | | ?????????????????????????????????????????????????? | | ?????????????????????????????????????????????????? | | ?????????????????????????????????????????????????? | | ?????????????????????????????####+###????????????? | | ???????????????????????????? +????????????? | | ???????????????????????????? #????????????? | | ???????????????????????????? #????????????? | | ????????#################### +????????????? | | ??####### + #????????????? | | ??# # ####### #????????????? | | ??# # """" #?????# ]]] #????????????? | | ??# # """" #?????# ]] """ #????????????? | | ??# + """" #?????# ]]] """ #????????????? | | ??# # """" = #?????#t """ +????????????? | | ??# # """" #?????# #????????????? | | ??# # """" #?????# """ """ #????????????? | | ??# # ;"????# """ """ #????????????? | | ??# ###;;;;;;; !" # """ """ #????????????? | | ??# h @ #????????????? | | ??# r """ """ #????????????? | | ??# """ """ #????????????? | | ??# r """ """ #????????????? | | ??# ???????????????? | | ??# " " " """ ??????????????? | | ??# """ """ ?????????????? | | ??# " """r""???#????????????? | | ??# "? r ????????????????? | | ??+ "? """ ""????????????????? | | ??# ??? """ ""????????????????? | | ??# ??? o ""????????????????????? | | ??#####??? ;;; ;;## ????????????????????? | | ???????????###########?# "?????????????????????? | | ???????????????????????# "?????????????????????? | | ???????????????????????# "?????????????????????? | | ???????????????????????? ?????????????????????? | | ???????????????????????? "?????????????????????? | | ???????????????????????? ??????????????????????? | | ???????????????????????? ??????????????????????? | | ?????????????????????????????????????????????????? | | ?????????????????????????????????????????????????? | | ?????????????????????????????????????????????????? | | ?????????????????????????????????????????????????? | | ?????????????????????????????????????????????????? | +----------------------------------------------------+ Best States ------------- Heat Dissipation 56 Energy Generation 14 Energy Capacity 265 Matter Stores 500 Matter Capacity 500 Sight Range 20 Terrain Scan Density 10 Armor Coverage 300 Resistance: KI 20 Resistance: TH 20 Resistance: EX 20 Resistance: EM 20 Resistance: I 20 Resistance: S 20 Resistance: P 20 Core Shielding 20 Propulsion Shielding 66 Evasion (%) 50 Targeting Accuracy 5 Recoil Reduction 2 Offensive Hacking 10 Item Schematics ----------------- None Robot Schematics ------------------ None Fabricated ------------ Nothing Alien Tech Used ----------------- None Achievements -------------- None Challenges ------------ None Game ------ Seed NuclearReclamationLauncher Manual? 0 Play Time 00:18:35 Cumulative 323.0 hours Start 2020.08.11 @ 19:30:35 End 2020.08.11 @ 19:48:44 Sessions 1 Manual Loads 0 Difficulty Adventurer Special Mode None Game No. 116 Rogue 1 Adventurer 115 Explorer 0 Win Type - Total 1 Types 1/0/0/0/0/0/0 Lore% 34 Gallery% 63 Achievement% 47 Wizard Run 0 Options --------- ASCII 0 Keyboard 0 Movement Numpad Keybinds 0 Fullscreen 1 Font 12/Smallcaps Map View 83x54 Tactical HUD 1 Map Filters NONE Filters NONE Steam X RUN: 702d70e2-5571-48bd-b1ca-ad60633d80fc